[Event "Chinese Championship-B Women 2024"]
[Site "Liaocheng"]
[Date "2024.04.24"]
[Round "4.5"]
[White "Wang, Shunshun"]
[Black "Wang, Xiaoyan"]
[Result "0-1"]
[WhiteElo "1763"]
[BlackElo "1932"]
[PlyCount "60"]
[EventDate "2024.04.24"]
[EventType "swiss"]
[EventCountry "CHN"]
[TimeControl "5400+30"]

1. d4 {[%emt 0:01:39]} Nf6 {[%emt 0:00:10]} 2. c4 {[%emt 0:00:11]} g6 {[%emt 0:00:06]} 3. Nc3 {[%emt 0:00:08]} Bg7 {[%emt 0:00:03]} 4. e4 {[%emt 0:00:09]} d6 {[%emt 0:00:03]} 5. h3 {[%emt 0:00:02]} O-O {[%emt 0:00:15]} 6. Be3 {[%emt 0:00:08]} e5 {[%emt 0:01:36]} 7. d5 {[%emt 0:00:05]} a5 {[%emt 0:01:53]} 8. g4 {[%emt 0:00:23]} Na6 {[%emt 0:01:53]} 9. Nge2 {[%emt 0:00:45]} c6 {[%emt 0:05:25]} 10. Qd2 {[%emt 0:04:05]} cxd5 {[%emt 0:01:35]} 11. cxd5 {[%emt 0:00:22]} b5 {[%emt 0:01:51]} 12. f3 {[%emt 0:04:03]} Bd7 {[%emt 0:04:05]} 13. Ng3 {[%emt 0:04:20]} b4 {[%emt 0:01:27]} 14. Nce2 {[%emt 0:01:12]} Nc5 {[%emt 0:01:36]} 15. h4 {[%emt 0:06:06]} Bb5 {[%emt 0:03:44]} 16. Nc1 {[%emt 0:01:18]} Bxf1 {[%emt 0:03:50]} 17. Kxf1 {[%emt 0:00:14]} h5 {[%emt 0:13:11]} 18. gxh5 {[%emt 0:01:02]} Nxh5 {[%emt 0:05:45]} 19. Nxh5 {[%emt 0:00:15]} gxh5 {[%emt 0:00:03]} 20. Rg1 {[%emt 0:14:10]} f5 {[%emt 0:02:01]} 21. Bh6 {[%emt 0:01:15]} Ra7 {[%emt 0:00:31]} 22. Bxg7 {[%emt 0:17:08]} Rxg7 {[%emt 0:00:32]} 23. Qh6 {[%emt 0:01:20]} Rxg1+ {[%emt 0:01:53]} 24. Kxg1 {[%emt 0:00:03]} Rf7 {[%emt 0:01:58]} 25. Qxh5 {[%emt 0:01:20]} fxe4 {[%emt 0:01:12]} 26. Ne2 {[%emt 0:05:35]} Rh7 {[%emt 0:04:01]} 27. Qf5 {[%emt 0:00:10]} Rg7+ {[%emt 0:00:44]} 28. Kf1 {[%emt 0:01:09]} Qxh4 {[%emt 0:00:34]} 29. Ng1 {[%emt 0:02:06]} e3 {[%emt 0:06:44]} 30. Nh3 {[%emt 0:02:26]} Qc4+ {[%emt 0:00:24]} 0-1

[Event "Chinese Championship-B Women 2024"]
[Site "Liaocheng"]
[Date "2024.04.24"]
[Round "4.6"]
[White "Jiang, Tianyu"]
[Black "Zhou, Lanqier"]
[Result "1-0"]
[WhiteElo "1929"]
[BlackElo "1654"]
[PlyCount "83"]
[EventDate "2024.04.24"]
[EventType "swiss"]
[EventCountry "CHN"]
[TimeControl "5400+30"]

1. e4 {[%emt 0:01:10]} e5 {[%emt 0:00:44]} 2. Nf3 {[%emt 0:00:11]} Nc6 {[%emt 0:00:14]} 3. Bc4 {[%emt 0:00:16]} Nf6 {[%emt 0:00:27]} 4. d3 {[%emt 0:09:06]} Be7 {[%emt 0:02:16]} 5. O-O {[%emt 0:01:07]} d6 {[%emt 0:00:53]} 6. a4 {[%emt 0:00:22]} O-O {[%emt 0:02:56]} 7. Re1 {[%emt 0:01:26]} Be6 {[%emt 0:02:59]} 8. Bxe6 {[%emt 0:12:23]} fxe6 {[%emt 0:00:05]} 9. c3 {[%emt 0:00:07]} Qd7 {[%emt 0:05:28]} 10. Nbd2 {[%emt 0:05:51]} Nh5 {[%emt 0:10:22]} 11. Nf1 {[%emt 0:13:06]} Nf4 {[%emt 0:04:45]} 12. g3 {[%emt 0:16:14]} Ng6 {[%emt 0:00:32]} 13. h4 {[%emt 0:01:28]} a5 {[%emt 0:22:03]} 14. N1h2 {[%emt 0:05:41]} Rae8 {[%emt 0:09:28]} 15. Kg2 {[%emt 0:04:53]} Bd8 {[%emt 0:04:44]} 16. Ng5 {[%emt 0:04:17]} Nh8 {[%emt 0:08:59]} 17. Qh5 {[%emt 0:05:17]} h6 {[%emt 0:07:20]} 18. Nh3 {[%emt 0:00:55]} Qf7 {[%emt 0:00:32]} 19. Qe2 {[%emt 0:00:48]} d5 {[%emt 0:05:44]} 20. Rf1 {[%emt 0:01:14]} Qd7 {[%emt 0:04:32]} 21. Qg4 {[%emt 0:05:05]} Rf6 {[%emt 0:02:13]} 22. Qe2 {[%emt 0:03:45]} Rff8 {[%emt 0:00:33]} 23. Ng4 {[%emt 0:05:00]} Nf7 {[%emt 0:01:13]} 24. Bd2 {[%emt 0:00:32]} Be7 {[%emt 0:01:55]} 25. Rad1 {[%emt 0:00:20]} Bd6 {[%emt 0:00:30]} 26. Nh2 {[%emt 0:01:06]} Be7 {[%emt 0:00:55]} 27. Qg4 {[%emt 0:00:11]} Rd8 {[%emt 0:00:59]} 28. Qg6 {[%emt 0:01:34]} Nh8 {[%emt 0:00:23]} 29. Qg4 {[%emt 0:00:15]} Nf7 {[%emt 0:00:07]} 30. Bc1 {[%emt 0:00:51]} Bf6 {[%emt 0:00:59]} 31. Qh5 {[%emt 0:00:38]} Nh8 {[%emt 0:00:25]} 32. Qe2 {[%emt 0:00:39]} Nf7 {[%emt 0:00:38]} 33. Ng4 {[%emt 0:00:36]} Be7 {[%emt 0:00:10]} 34. f4 {[%emt 0:00:27]} Bd6 {[%emt 0:00:52]} 35. f5 {[%emt 0:00:17]} exf5 {[%emt 0:00:24]} 36. exf5 {[%emt 0:00:05]} Be7 {[%emt 0:00:40]} 37. f6 {[%emt 0:00:11]} Bxf6 {[%emt 0:00:29]} 38. Nxf6+ {[%emt 0:01:08]} gxf6 {[%emt 0:00:04]} 39. Rxf6 {[%emt 0:00:11]} Kg7 {[%emt 0:00:39]} 40. Rdf1 {[%emt 0:00:04]} Ne7 {[%emt 0:00:26]} 41. Qh5 {[%emt 0:00:23]} Ng8 {[%emt 0:00:18]} 42. Qg6+ {[%emt 0:00:08]} 1-0

[Event "Chinese Championship-B Women 2024"]
[Site "Liaocheng"]
[Date "2024.04.24"]
[Round "4.7"]
[White "Xue, Shixuan"]
[Black "Men, Jiayi"]
[Result "1-0"]
[WhiteElo "1790"]
[BlackElo "1845"]
[PlyCount "93"]
[EventDate "2024.04.24"]
[EventType "swiss"]
[EventCountry "CHN"]
[TimeControl "5400+30"]

1. e4 {[%emt 0:00:06]} d6 {[%emt 0:00:03]} 2. d4 {[%emt 0:00:09]} Nf6 {[%emt 0:01:15]} 3. Nc3 {[%emt 0:00:14]} g6 {[%emt 0:00:11]} 4. f4 {[%emt 0:01:32]} Bg7 {[%emt 0:01:13]} 5. Nf3 {[%emt 0:00:17]} c5 {[%emt 0:01:57]} 6. dxc5 {[%emt 0:01:10]} Qa5 {[%emt 0:00:12]} 7. Bd3 {[%emt 0:01:37]} Qxc5 {[%emt 0:00:36]} 8. Qe2 {[%emt 0:00:56]} a6 {[%emt 0:01:35]} 9. Be3 {[%emt 0:02:55]} Qc7 {[%emt 0:01:02]} 10. O-O {[%emt 0:08:34]} Bg4 {[%emt 0:03:34]} 11. h3 {[%emt 0:02:35]} Bxf3 {[%emt 0:00:11]} 12. Qxf3 {[%emt 0:00:58]} O-O {[%emt 0:00:51]} 13. Rae1 {[%emt 0:06:30]} Nbd7 {[%emt 0:02:44]} 14. g4 {[%emt 0:03:10]} Nc5 {[%emt 0:08:56]} 15. g5 {[%emt 0:09:11]} Nxd3 {[%emt 0:01:45]} 16. cxd3 {[%emt 0:00:17]} Nd7 {[%emt 0:02:03]} 17. Nd5 {[%emt 0:13:31]} Qd8 {[%emt 0:00:23]} 18. f5 {[%emt 0:00:30]} e6 {[%emt 1:10:59]} 19. f6 {[%emt 0:03:22]} exd5 {[%emt 0:00:00]} 20. fxg7 {[%emt 0:42:56]} Kxg7 {[%emt 0:00:00]} 21. Bd4+ {[%emt 0:00:00]} Ne5 {[%emt 0:00:00]} 22. Qg3 {[%emt 0:00:00]} f6 {[%emt 0:00:00]} 23. exd5 {[%emt 0:00:00]} Kg8 {[%emt 0:00:00]} 24. gxf6 {[%emt 0:02:00]} Rxf6 {[%emt 0:03:00]} 25. Rxf6 {[%emt 0:00:00]} Qxf6 {[%emt 0:00:30]} 26. Bxe5 {[%emt 0:00:00]} dxe5 {[%emt 0:00:00]} 27. Qxe5 {[%emt 0:00:00]} Qf3 {[%emt 0:01:00]} 28. Qe6+ {[%emt 0:00:00]} Kg7 {[%emt 0:00:00]} 29. Rf1 {[%emt 0:00:00]} Qxd3 {[%emt 0:00:00]} 30. Rf7+ {[%emt 0:00:00]} Kh6 {[%emt 0:00:00]} 31. Qe5 {[%emt 0:00:00]} Qd1+ {[%emt 0:00:00]} 32. Kg2 {[%emt 0:00:00]} Qd2+ {[%emt 0:00:00]} 33. Kg3 {[%emt 0:00:00]} Qg5+ {[%emt 0:00:00]} 34. Qxg5+ {[%emt 0:00:00]} Kxg5 {[%emt 0:00:00]} 35. h4+ {[%emt 0:00:00]} Kh6 {[%emt 0:00:00]} 36. Kf4 {[%emt 0:00:00]} Rc8 {[%emt 0:00:00]} 37. d6 {[%emt 0:00:00]} Rc2 {[%emt 0:00:00]} 38. Rxb7 {[%emt 0:00:53]} Rf2+ {[%emt 0:00:00]} 39. Ke5 {[%emt 0:00:39]} g5 {[%emt 0:00:00]} 40. hxg5+ {[%emt 0:01:30]} Kxg5 {[%emt 0:00:00]} 41. Rg7+ {[%emt 0:00:49]} Kh5 {[%emt 0:00:00]} 42. d7 {[%emt 0:00:26]} Rd2 {[%emt 0:00:00]} 43. Ke6 {[%emt 0:00:41]} Kh6 {[%emt 0:00:00]} 44. Rg4 {[%emt 0:00:52]} Kh5 {[%emt 0:00:00]} 45. Re4 {[%emt 0:00:08]} Kg6 {[%emt 0:00:00]} 46. Ke7 {[%emt 0:00:17]} Kf5 {[%emt 0:00:00]} 47. Re1 {[%emt 0:00:08]} 1-0

[Event "Chinese Championship-B Women 2024"]
[Site "Liaocheng"]
[Date "2024.04.24"]
[Round "4.8"]
[White "Chu, Ruotong"]
[Black "Peng, Shiyang"]
[Result "1-0"]
[WhiteElo "2124"]
[BlackElo "1661"]
[PlyCount "73"]
[EventDate "2024.04.24"]
[EventType "swiss"]
[EventCountry "CHN"]
[TimeControl "5400+30"]

1. d4 {[%emt 0:07:31]} Nf6 {[%emt 0:00:09]} 2. c4 {[%emt 0:00:15]} c5 {[%emt 0:00:07]} 3. d5 {[%emt 0:00:15]} b5 {[%emt 0:00:16]} 4. cxb5 {[%emt 0:00:13]} a6 {[%emt 0:00:08]} 5. bxa6 {[%emt 0:00:14]} g6 {[%emt 0:00:08]} 6. Nc3 {[%emt 0:00:04]} Bxa6 {[%emt 0:00:06]} 7. e4 {[%emt 0:01:09]} Bxf1 {[%emt 0:00:10]} 8. Kxf1 {[%emt 0:00:03]} d6 {[%emt 0:00:06]} 9. Nf3 {[%emt 0:00:23]} Nbd7 {[%emt 0:00:13]} 10. g3 {[%emt 0:00:53]} Bg7 {[%emt 0:00:12]} 11. Kg2 {[%emt 0:00:07]} O-O {[%emt 0:00:14]} 12. a4 {[%emt 0:01:54]} Qa5 {[%emt 0:01:11]} 13. Qc2 {[%emt 0:10:23]} Rfb8 {[%emt 0:01:28]} 14. Re1 {[%emt 0:01:29]} Nb6 {[%emt 0:02:59]} 15. Nd2 {[%emt 0:02:46]} Nfd7 {[%emt 0:03:13]} 16. f4 {[%emt 0:03:27]} Qb4 {[%emt 0:02:34]} 17. Ra3 {[%emt 0:03:33]} Ra7 {[%emt 0:03:43]} 18. Rb3 {[%emt 0:06:00]} Qa5 {[%emt 0:01:01]} 19. Rb5 {[%emt 0:00:23]} Qa6 {[%emt 0:00:24]} 20. b3 {[%emt 0:00:34]} Nc8 {[%emt 0:03:50]} 21. Rxb8 {[%emt 0:01:08]} Nxb8 {[%emt 0:00:11]} 22. Nb5 {[%emt 0:02:46]} Qb7 {[%emt 0:05:17]} 23. Nxa7 {[%emt 0:00:40]} Nxa7 {[%emt 0:00:17]} 24. Bb2 {[%emt 0:01:00]} Na6 {[%emt 0:01:24]} 25. Bxg7 {[%emt 0:00:43]} Kxg7 {[%emt 0:00:13]} 26. Qc3+ {[%emt 0:00:31]} Kg8 {[%emt 0:00:18]} 27. Nc4 {[%emt 0:00:05]} Nb4 {[%emt 0:00:50]} 28. Rf1 {[%emt 0:00:13]} Qa6 {[%emt 0:01:04]} 29. f5 {[%emt 0:00:19]} Nc8 {[%emt 0:01:13]} 30. fxg6 {[%emt 0:04:55]} hxg6 {[%emt 0:00:14]} 31. Qf3 {[%emt 0:00:03]} f6 {[%emt 0:01:06]} 32. Qg4 {[%emt 0:00:04]} Kg7 {[%emt 0:00:14]} 33. h4 {[%emt 0:00:07]} Nc2 {[%emt 0:00:50]} 34. h5 {[%emt 0:00:19]} g5 {[%emt 0:01:08]} 35. Qf5 {[%emt 0:00:21]} Nb6 {[%emt 0:01:09]} 36. h6+ {[%emt 0:00:05]} Kh8 {[%emt 0:01:17]} 37. Qg6 {[%emt 0:00:06]} 1-0

[Event "Chinese Championship-B Women 2024"]
[Site "Liaocheng"]
[Date "2024.04.24"]
[Round "4.9"]
[White "Yang, Yijing"]
[Black "Guo, Hanxi"]
[Result "1-0"]
[WhiteElo "2040"]
[BlackElo "1699"]
[PlyCount "127"]
[EventDate "2024.04.24"]
[EventType "swiss"]
[EventCountry "CHN"]
[TimeControl "5400+30"]

1. c4 {[%emt 0:00:04]} Nf6 {[%emt 0:00:11]} 2. Nc3 {[%emt 0:00:05]} e6 {[%emt 0:00:05]} 3. e4 {[%emt 0:00:08]} d5 {[%emt 0:00:05]} 4. cxd5 {[%emt 0:00:07]} exd5 {[%emt 0:00:04]} 5. e5 {[%emt 0:00:03]} d4 {[%emt 0:00:21]} 6. exf6 {[%emt 0:00:12]} dxc3 {[%emt 0:00:04]} 7. Bb5+ {[%emt 0:01:57]} c6 {[%emt 0:02:31]} 8. Qe2+ {[%emt 0:00:06]} Be6 {[%emt 0:00:33]} 9. Bc4 {[%emt 0:00:06]} Qxf6 {[%emt 0:05:10]} 10. dxc3 {[%emt 0:20:07]} Bc5 {[%emt 0:25:08]} 11. Bxe6 {[%emt 0:01:01]} Qxe6 {[%emt 0:00:11]} 12. Qxe6+ {[%emt 0:00:07]} fxe6 {[%emt 0:00:05]} 13. Nf3 {[%emt 0:07:23]} O-O {[%emt 0:00:39]} 14. O-O {[%emt 0:00:19]} Nd7 {[%emt 0:00:34]} 15. Re1 {[%emt 0:00:29]} e5 {[%emt 0:02:46]} 16. Be3 {[%emt 0:19:52]} e4 {[%emt 0:06:34]} 17. Ng5 {[%emt 0:06:47]} Rae8 {[%emt 0:00:55]} 18. b4 {[%emt 0:05:24]} Be7 {[%emt 0:11:41]} 19. Nxe4 {[%emt 0:35:43]} Bxb4 {[%emt 0:42:23]} 20. Bxa7 {[%emt 0:00:00]} Ba5 {[%emt 0:00:00]} 21. Bd4 {[%emt 0:01:00]} b6 {[%emt 0:01:00]} 22. Rad1 {[%emt 0:00:00]} Rd8 {[%emt 0:00:30]} 23. f3 {[%emt 0:01:00]} c5 {[%emt 0:00:00]} 24. Bf2 {[%emt 0:00:00]} Nf6 {[%emt 0:00:00]} 25. Rxd8 {[%emt 0:00:00]} Rxd8 {[%emt 0:00:00]} 26. Bh4 {[%emt 0:00:00]} Kf7 {[%emt 0:00:00]} 27. Rc1 {[%emt 0:00:00]} Rd3 {[%emt 0:00:00]} 28. Nxf6 {[%emt 0:00:00]} gxf6 {[%emt 0:00:00]} 29. Be1 {[%emt 0:00:00]} c4 {[%emt 0:00:00]} 30. a4 {[%emt 0:00:00]} Kg6 {[%emt 0:00:00]} 31. Kf1 {[%emt 0:00:00]} h5 {[%emt 0:00:42]} 32. Ke2 {[%emt 0:00:00]} Kf5 {[%emt 0:01:12]} 33. Bd2 {[%emt 0:00:00]} Kg6 {[%emt 0:00:45]} 34. Kd1 {[%emt 0:00:00]} h4 {[%emt 0:01:01]} 35. h3 {[%emt 0:00:00]} Rd8 {[%emt 0:01:06]} 36. Kc2 {[%emt 0:00:00]} Rg8 {[%emt 0:00:21]} 37. Re1 {[%emt 0:00:00]} f5 {[%emt 0:01:09]} 38. Bf4 {[%emt 0:00:00]} Kf6 {[%emt 0:00:35]} 39. Re2 {[%emt 0:00:00]} Kf7 {[%emt 0:00:55]} 40. Be5 {[%emt 0:00:00]} Re8 {[%emt 0:00:32]} 41. Kd1 {[%emt 0:00:00]} Rd8+ {[%emt 0:00:39]} 42. Rd2 {[%emt 0:00:00]} Rg8 {[%emt 0:00:20]} 43. Kc2 {[%emt 0:00:00]} Re8 {[%emt 0:00:31]} 44. Bd4 {[%emt 0:00:00]} Rg8 {[%emt 0:00:35]} 45. Re2 {[%emt 0:00:00]} Rg6 {[%emt 0:00:28]} 46. Kd2 {[%emt 0:02:58]} Rd6 {[%emt 0:00:32]} 47. Kc2 {[%emt 0:00:02]} Rg6 {[%emt 0:00:05]} 48. Kb2 {[%emt 0:00:56]} Rg8 {[%emt 0:00:43]} 49. Kc1 {[%emt 0:00:48]} Rg6 {[%emt 0:00:27]} 50. Rb2 {[%emt 0:01:01]} Rd6 {[%emt 0:00:47]} 51. Rb5 {[%emt 0:00:20]} Kg6 {[%emt 0:00:33]} 52. Re5 {[%emt 0:00:29]} Rc6 {[%emt 0:00:31]} 53. Re8 {[%emt 0:00:27]} Kg5 {[%emt 0:00:19]} 54. Kd2 {[%emt 0:01:39]} Rd6 {[%emt 0:00:28]} 55. Ke2 {[%emt 0:00:21]} Rd5 {[%emt 0:00:42]} 56. Kf2 {[%emt 0:00:37]} b5 {[%emt 0:00:27]} 57. f4+ {[%emt 0:02:52]} Kg6 {[%emt 0:00:20]} 58. axb5 {[%emt 0:05:00]} Rxb5 {[%emt 0:00:14]} 59. Rc8 {[%emt 0:00:00]} Rb2+ {[%emt 0:00:53]} 60. Kf3 {[%emt 0:00:00]} Rd2 {[%emt 0:00:34]} 61. Rxc4 {[%emt 0:00:00]} Rd3+ {[%emt 0:00:23]} 62. Ke2 {[%emt 0:00:00]} Rg3 {[%emt 0:00:16]} 63. Kf2 {[%emt 0:00:00]} Bd8 {[%emt 0:00:15]} 64. Rc8 {[%emt 0:00:00]} 1-0

[Event "Chinese Championship-B Women 2024"]
[Site "Liaocheng"]
[Date "2024.04.24"]
[Round "4.10"]
[White "Zhao, Yunqing"]
[Black "Liu, Tian Yi"]
[Result "1-0"]
[WhiteElo "1965"]
[BlackElo "1636"]
[PlyCount "98"]
[EventDate "2024.04.24"]
[EventType "swiss"]
[EventCountry "CHN"]
[TimeControl "5400+30"]

1. d4 {[%emt 0:00:05]} Nf6 {[%emt 0:00:29]} 2. Nf3 {[%emt 0:00:33]} e6 {[%emt 1:31:01]} 3. g3 {[%emt 1:31:22]} d5 {[%emt 0:00:30]} 4. Bg2 {[%emt 0:00:30]} Be7 {[%emt 0:00:30]} 5. c4 {[%emt 0:00:30]} O-O {[%emt 0:00:00]} 6. O-O {[%emt 0:00:00]} b6 {[%emt 0:00:00]} 7. cxd5 {[%emt 0:00:00]} exd5 {[%emt 0:00:00]} 8. Nc3 {[%emt 0:01:30]} Bb7 {[%emt 0:02:00]} 9. Ne5 {[%emt 0:00:30]} Na6 {[%emt 0:00:30]} 10. Bf4 {[%emt 0:00:30]} c5 {[%emt 0:00:30]} 11. Rc1 {[%emt 0:00:30]} Nc7 {[%emt 0:00:30]} 12. dxc5 {[%emt 0:00:30]} Bxc5 {[%emt 0:00:30]} 13. Nf3 {[%emt 0:00:30]} Ne6 {[%emt 0:00:30]} 14. Be5 {[%emt 0:00:30]} Ne4 {[%emt 0:00:30]} 15. e3 {[%emt 0:00:30]} Nxc3 {[%emt 0:00:30]} 16. Bxc3 {[%emt 0:00:30]} Qe7 {[%emt 0:00:30]} 17. Qd2 {[%emt 0:00:30]} Rfd8 {[%emt 0:00:30]} 18. Rfd1 {[%emt 0:00:00]} a5 {[%emt 0:00:00]} 19. h4 {[%emt 0:00:00]} Rd6 {[%emt 0:01:00]} 20. Nd4 {[%emt 0:01:30]} Bxd4 {[%emt 0:00:00]} 21. Bxd4 h6 22. Rc2 {[%emt 0:00:00]} Rad8 23. b4 {[%emt 0:00:00]} Bc6 {[%emt 0:00:00]} 24. Rb2 {[%emt 0:00:00]} Nxd4 {[%emt 0:00:00]} 25. Qxd4 {[%emt 0:00:00]} axb4 {[%emt 0:00:14]} 26. Rxb4 {[%emt 0:00:00]} Ra8 {[%emt 0:00:30]} 27. Rd2 {[%emt 0:00:00]} b5 {[%emt 0:00:30]} 28. Bf1 {[%emt 0:00:00]} Qf6 {[%emt 0:00:30]} 29. e4 {[%emt 0:00:00]} Qxd4 {[%emt 0:00:30]} 30. Rbxd4 {[%emt 0:00:40]} Bd7 {[%emt 0:02:42]} 31. Rxd5 {[%emt 0:01:33]} Rxd5 {[%emt 0:00:08]} 32. exd5 {[%emt 0:00:14]} g6 {[%emt 0:01:26]} 33. f4 {[%emt 0:01:37]} Kg7 {[%emt 0:00:00]} 34. Kf2 {[%emt 0:00:54]} Kf6 {[%emt 0:00:09]} 35. Bg2 {[%emt 0:00:49]} Ra3 {[%emt 0:00:47]} 36. d6 {[%emt 0:01:11]} Ra6 {[%emt 0:00:30]} 37. Bf3 {[%emt 0:00:57]} b4 {[%emt 0:00:30]} 38. Be2 {[%emt 0:00:30]} Rb6 {[%emt 0:00:30]} 39. Bc4 {[%emt 0:00:30]} Rb7 {[%emt 0:00:30]} 40. Ke3 {[%emt 0:00:30]} Ra7 {[%emt 0:00:30]} 41. Kd4 {[%emt 0:00:30]} Ra3 {[%emt 0:00:30]} 42. Bb3 {[%emt 0:00:30]} Ra5 {[%emt 0:00:30]} 43. Kc4 {[%emt 0:00:30]} g5 {[%emt 0:00:30]} 44. fxg5+ {[%emt 0:00:30]} hxg5 {[%emt 0:00:30]} 45. h5 {[%emt 0:00:30]} g4 {[%emt 0:00:30]} 46. Rf2+ {[%emt 0:00:30]} Kg7 {[%emt 0:00:25]} 47. Rxf7+ {[%emt 0:00:19]} Kxf7 {[%emt 0:00:11]} 48. Kxb4+ {[%emt 0:00:04]} Kf6 {[%emt 0:00:30]} 49. Kxa5 {[%emt 0:00:30]} Ke5 {[%emt 0:00:02]} 1-0

[Event "Chinese Championship-B Women 2024"]
[Site "Liaocheng"]
[Date "2024.04.24"]
[Round "4.11"]
[White "Wu, Shuang(Hlj)"]
[Black "Zhao, Chenyu"]
[Result "0-1"]
[WhiteElo "1701"]
[BlackElo "1909"]
[PlyCount "118"]
[EventDate "2024.04.24"]
[EventType "swiss"]
[EventCountry "CHN"]
[TimeControl "5400+30"]

1. d4 {[%emt 0:00:04]} Nf6 {[%emt 1:31:00]} 2. Nf3 {[%emt 0:00:07]} e6 {[%emt 0:00:00]} 3. e3 {[%emt 0:00:07]} c5 {[%emt 0:00:00]} 4. Bd3 {[%emt 0:00:10]} Nc6 {[%emt 0:00:00]} 5. a3 {[%emt 0:00:36]} d5 {[%emt 0:00:00]} 6. b3 {[%emt 0:00:35]} b6 {[%emt 0:00:00]} 7. Bb2 {[%emt 0:00:11]} Bb7 {[%emt 0:00:00]} 8. Nbd2 {[%emt 0:00:25]} Bd6 {[%emt 0:00:00]} 9. Ne5 {[%emt 0:05:32]} cxd4 {[%emt 0:00:00]} 10. exd4 {[%emt 0:00:27]} Qc7 {[%emt 0:00:00]} 11. Qe2 {[%emt 0:02:46]} O-O {[%emt 0:00:00]} 12. O-O {[%emt 0:00:10]} Ne7 {[%emt 0:00:00]} 13. f4 {[%emt 0:00:48]} Rac8 {[%emt 0:00:00]} 14. Rf3 {[%emt 0:02:36]} Nf5 {[%emt 0:00:00]} 15. Rh3 {[%emt 0:06:23]} Bxe5 {[%emt 0:00:00]} 16. fxe5 {[%emt 0:05:28]} Ne4 {[%emt 0:00:00]} 17. Bxe4 {[%emt 0:23:31]} dxe4 {[%emt 0:00:00]} 18. c4 {[%emt 0:00:15]} Qc6 {[%emt 0:00:00]} 19. Re1 {[%emt 0:04:18]} e3 {[%emt 0:00:00]} 20. Nf1 {[%emt 0:07:30]} Rcd8 {[%emt 0:00:00]} 21. d5 {[%emt 0:17:28]} exd5 {[%emt 0:00:00]} 22. Nxe3 {[%emt 0:00:22]} Nxe3 {[%emt 0:00:00]} 23. Rxe3 {[%emt 0:00:10]} Qe6 {[%emt 0:00:00]} 24. Rf1 {[%emt 0:02:00]} dxc4 {[%emt 0:00:00]} 25. bxc4 {[%emt 0:01:27]} Ba6 {[%emt 0:00:00]} 26. Rf4 {[%emt 0:05:32]} Rd7 {[%emt 0:00:00]} 27. h3 {[%emt 0:15:02]} Rc8 {[%emt 0:13:00]} 28. Ree4 {[%emt 0:00:30]} Rdc7 {[%emt 0:00:30]} 29. Rf6 {[%emt 0:00:30]} Bxc4 {[%emt 0:00:30]} 30. Qe3 {[%emt 0:00:30]} Qd7 {[%emt 0:00:30]} 31. Rd6 {[%emt 0:00:30]} Qe7 {[%emt 0:00:00]} 32. Red4 {[%emt 0:00:00]} Be6 {[%emt 0:00:00]} 33. Qd3 {[%emt 0:00:00]} g6 {[%emt 0:00:00]} 34. a4 {[%emt 0:00:00]} h6 {[%emt 0:00:00]} 35. h4 {[%emt 0:01:22]} Rc4 {[%emt 0:00:00]} 36. Ba3 {[%emt 0:00:24]} Rxd4 {[%emt 0:00:00]} 37. Rxd4 {[%emt 0:00:18]} Qc7 {[%emt 0:00:00]} 38. Bb4 {[%emt 0:00:48]} Qxe5 {[%emt 0:00:00]} 39. Bc3 {[%emt 0:00:32]} Qc5 {[%emt 0:00:00]} 40. Bb2 {[%emt 0:00:24]} Rd8 {[%emt 0:00:00]} 41. Kh2 {[%emt 0:00:33]} Rxd4 {[%emt 0:00:00]} 42. Qxd4 {[%emt 0:00:27]} Qxd4 {[%emt 0:00:00]} 43. Bxd4 {[%emt 0:00:04]} Kf8 {[%emt 0:00:33]} 44. a5 {[%emt 0:00:38]} bxa5 {[%emt 0:00:07]} 45. Bxa7 {[%emt 0:00:05]} Ke7 {[%emt 0:01:23]} 46. Kg3 {[%emt 0:00:48]} Kd6 {[%emt 0:00:32]} 47. Kf2 {[%emt 0:00:20]} a4 {[%emt 0:00:19]} 48. Ke3 {[%emt 0:00:50]} a3 {[%emt 0:00:20]} 49. Bd4 {[%emt 0:00:36]} a2 {[%emt 0:00:05]} 50. Kd2 {[%emt 0:00:39]} Kd5 {[%emt 0:00:22]} 51. Bf6 {[%emt 0:00:32]} Ke4 {[%emt 0:00:11]} 52. Kc2 {[%emt 0:00:32]} Ke3 {[%emt 0:00:22]} 53. Kb2 {[%emt 0:00:26]} Kf4 {[%emt 0:02:20]} 54. Bg7 {[%emt 0:00:33]} h5 {[%emt 0:00:08]} 55. Bf6 {[%emt 0:00:23]} Kg3 {[%emt 0:00:03]} 56. Kc2 {[%emt 0:00:35]} Kxg2 {[%emt 0:00:06]} 57. Kd3 {[%emt 0:00:30]} Kf3 {[%emt 0:00:19]} 58. Be5 {[%emt 0:00:35]} f5 {[%emt 0:00:38]} 59. Kd2 {[%emt 0:00:15]} f4 {[%emt 0:00:20]} 0-1

[Event "Chinese Championship-B Women 2024"]
[Site "Liaocheng"]
[Date "2024.04.24"]
[Round "4.12"]
[White "Gao, Muziyan"]
[Black "Pi, Aiying"]
[Result "1-0"]
[WhiteElo "1891"]
[BlackElo "1617"]
[PlyCount "59"]
[EventDate "2024.04.24"]
[EventType "swiss"]
[EventCountry "CHN"]
[TimeControl "5400+30"]

1. Nf3 {[%emt 0:00:09]} d6 {[%emt 0:00:17]} 2. d4 {[%emt 0:00:48]} Bg4 {[%emt 0:00:21]} 3. e4 {[%emt 0:02:56]} Nf6 {[%emt 0:01:02]} 4. Bd3 {[%emt 0:02:17]} e5 {[%emt 0:02:49]} 5. dxe5 {[%emt 0:02:06]} dxe5 {[%emt 0:02:53]} 6. h3 {[%emt 0:02:37]} Bxf3 {[%emt 0:01:02]} 7. Qxf3 {[%emt 0:00:26]} Nbd7 {[%emt 0:05:06]} 8. c3 {[%emt 0:02:42]} c6 {[%emt 0:05:04]} 9. O-O {[%emt 0:01:29]} Be7 {[%emt 0:01:42]} 10. Nd2 {[%emt 0:02:11]} O-O {[%emt 0:03:12]} 11. Nc4 {[%emt 0:04:00]} Qc7 {[%emt 0:03:16]} 12. Ne3 {[%emt 0:14:29]} g6 {[%emt 0:01:39]} 13. Ng4 {[%emt 0:02:24]} Nxg4 {[%emt 0:08:55]} 14. hxg4 {[%emt 0:08:04]} Qd8 {[%emt 0:06:04]} 15. Bh6 {[%emt 0:00:17]} Bg5 {[%emt 0:12:54]} 16. Bxf8 {[%emt 0:00:45]} Qxf8 {[%emt 0:02:26]} 17. Rad1 {[%emt 0:02:19]} Nc5 {[%emt 0:00:51]} 18. Bc2 {[%emt 0:00:32]} Rd8 {[%emt 0:02:41]} 19. b4 {[%emt 0:03:13]} Ne6 {[%emt 0:00:12]} 20. Rxd8 {[%emt 0:01:13]} Qxd8 {[%emt 0:00:32]} 21. Rd1 {[%emt 0:00:29]} Qe7 {[%emt 0:01:38]} 22. g3 {[%emt 0:02:01]} a6 {[%emt 0:01:48]} 23. Bb3 {[%emt 0:01:13]} Kg7 {[%emt 0:00:29]} 24. Qd3 {[%emt 0:03:04]} Nc7 {[%emt 0:07:33]} 25. Qd7 {[%emt 0:00:50]} Nb5 {[%emt 0:02:47]} 26. Qd3 {[%emt 0:07:46]} Nc7 {[%emt 0:01:27]} 27. a4 {[%emt 0:00:23]} Kf8 {[%emt 0:00:40]} 28. Qd7 {[%emt 0:00:20]} Ne6 {[%emt 0:05:26]} 29. Qc8+ {[%emt 0:01:10]} Kg7 {[%emt 0:00:36]} 30. Bxe6 {[%emt 0:03:01]} 1-0